bitfinex-derivatives/quotes_SOLF0:USTF0_20250227
["timestamp","ask_amount","ask_price","bid_price","bid_amount"]
[1740652612542,195.90231185,142.53,142.37,11.32]
[1740652612743,1.145e-05,142.4,142.37,32.38]
[1740652613046,195.90231185,142.53,142.38,4.72574887]
[1740652613249,195.90231185,142.53,142.38,6.08277321]
[1740652613640,200.81791185,142.53,142.38,6.08277321]
[1740652613948,0.05159574,142.47,142.44,0.05283557]
[1740652614143,0.05159574,142.47,142.36,6.08277321]
[1740652614345,207.24231185,142.53,142.35,4.9214]
[1740652614946,207.24231185,142.53,142.33,38.6122849]
[1740652614947,11.34,142.53,142.33,38.6122849]
[1740652615349,0.05342859,142.44,142.42,0.0479516]
[1740652615646,11.34,142.53,142.33,38.6122849]
[1740652615848,4.9169,142.49,142.41,4.9197]
[1740652616150,0.0494298,142.44,142.33,38.6122849]
[1740652616644,0.05152654,142.4,142.37,0.04718999]
[1740652616850,2.654e-05,142.4,142.39,4.9204]
[1740652617048,11.36,142.54,142.37,11.36]
[1740652618251,4.96346248,142.47,142.44,0.04777514]
[1740652618448,1.8496,142.46,142.37,11.36]
[1740652618652,3.8184,142.46,142.37,11.36]
[1740652619053,3.8184,142.46,142.32,191.36]
[1740652619251,4.9197,142.41,142.35,4.9217]
[1740652619448,3.8184,142.46,142.3,11.36]
[1740652619754,0.04529121,142.39,142.37,0.05104658]
[1740652619954,0.04529121,142.39,142.3,11.36]
[1740652620149,3.8184,142.46,142.3,11.36]
[1740652620349,3.8184,142.46,142.29,96.04131052]
[1740652620855,36.0,142.45,142.29,4.9238]
[1740652621048,36.0,142.54,142.26,11.36]
[1740652621253,0.04885938,142.39,142.36,0.05042031]
[1740652621653,36.0,142.53,142.29,2.43066424]
[1740652621855,0.05123588,142.39,142.36,0.04930206]
[1740652622153,36.0,142.52,142.27,96.05555507]
[1740652622154,11.46,142.47,142.27,96.05555507]
[1740652622451,0.04685443,142.39,142.36,0.04675775]
[1740652622753,1.9983,142.46,142.33,11.44]
[1740652622954,4.9195,142.42,142.36,4.9211]
[1740652623155,0.04725726,142.39,142.36,0.0527164]
[1740652623652,0.04725726,142.39,142.36,4.9740164]
[1740652623960,0.04725726,142.39,142.36,0.0527164]
[1740652624353,0.04725726,142.39,142.33,11.44]
[1740652624549,0.04725726,142.39,142.3,2.42845234]
[1740652624757,0.04725726,142.39,142.31,13.86797336]
[1740652624953,4.9197,142.42,142.32,2.42797336]
[1740652625150,1.8578,142.41,142.31,11.44]
[1740652625355,1.8578,142.41,142.32,2.42744833]
[1740652625561,0.04729127,142.37,142.36,4.9211]
[1740652625855,1.8578,142.41,142.35,0.05219845]
[1740652626060,0.04892098,142.38,142.35,0.05219845]
[1740652627463,0.04892098,142.38,142.36,4.9211]
[1740652628261,0.04892098,142.38,142.35,0.05219845]
[1740652628957,0.04892098,142.38,142.28,2.43147411]
[1740652629162,0.04892098,142.38,142.24,0.147]
[1740652629462,1.8578,142.41,142.3,4.9232]
[1740652630265,4.9218,142.35,142.34,0.04971376]
[1740652630464,0.05304751,142.37,142.29,4.9237]
[1740652630664,6.9052,142.34,142.29,4.9237]
[1740652631065,1.983,142.34,142.29,4.9237]
[1740652631558,4.9228,142.32,142.3,0.04699837]
[1740652631960,4.9228,142.32,142.24,0.147]
[1740652632160,4.9228,142.32,142.27,4.9244]
[1740652633168,0.05051737,142.31,142.2,6.09391192]
[1740652633363,0.05051737,142.31,142.21,2.43209202]
[1740652633560,1.983,142.34,142.22,2.43209202]
[1740652633761,1.983,142.34,142.16,50.0722849]
[1740652633961,4.9244,142.28,142.22,4.9261]
[1740652634365,0.04626912,142.26,142.22,4.9261]
[1740652634960,0.04626912,142.26,142.16,50.0722849]
[1740652635166,0.04626912,142.26,142.17,2.43558244]
[1740652635365,11.46,142.33,142.18,2.43558244]
[1740652635563,0.05134359,142.23,142.2,4.9269]
[1740652635764,1.8713,142.32,142.14,20.74080123]
[1740652635959,0.04838174,142.23,142.15,2.43693657]
[1740652636159,0.04838174,142.23,142.16,2.43693657]
[1740652636366,0.04838174,142.23,142.17,2.43693657]
[1740652636567,1.8713,142.32,142.18,2.43582907]
[1740652636762,0.04983832,142.21,142.2,4.9268]
[1740652636967,4.9254,142.25,142.2,4.9268]
[1740652637268,0.04523116,142.22,142.15,11.46]
[1740652637664,1.8713,142.32,142.16,2.43568696]
[1740652637866,0.05000223,142.2,142.17,2.43568696]
[1740652638065,1.8713,142.32,142.18,2.43568696]
[1740652638267,0.05183343,142.2,142.19,2.43568696]
[1740652638461,13.3008,142.31,142.19,2.43568696]
[1740652638665,0.04909695,142.21,142.14,1.9389]
[1740652638865,13.3008,142.31,142.15,2.43528822]
[1740652639170,13.3008,142.31,142.16,2.43528822]
[1740652639364,0.04466921,142.24,142.17,2.43528822]
[1740652639569,0.04466921,142.24,142.18,2.43528822]
[1740652639765,4.9255,142.25,142.19,2.43528822]
[1740652639966,0.04927099,142.22,142.2,2.43528822]
[1740652640169,0.04927099,142.22,142.14,1.9389]
[1740652640170,13.3008,142.31,142.14,1.9389]
[1740652640369,0.04443168,142.22,142.15,2.43597323]
[1740652640568,0.04443168,142.22,142.16,2.43597323]
[1740652640871,0.04443168,142.22,142.14,1.9389]
[1740652640872,0.04443168,142.22,142.17,2.43597323]
[1740652641071,0.04443168,142.22,142.18,2.43597323]
[1740652641266,0.04443168,142.22,142.14,1.9389]
[1740652641469,4.97063168,142.22,142.18,4.9275]
[1740652643174,0.04443168,142.22,142.14,1.9389]
[1740652643473,0.04443168,142.22,142.15,2.43714586]
[1740652643672,0.04443168,142.22,142.16,2.43714586]
[1740652643875,0.04443168,142.22,142.17,2.43714586]
[1740652644070,0.04443168,142.22,142.14,1.9389]
[1740652644374,0.04443168,142.22,142.15,2.43708512]
[1740652644574,4.9276,142.18,142.14,4.9287]
[1740652644773,4.9276,142.18,142.15,2.43588732]
[1740652644971,13.3008,142.31,142.09,4.74669818]
[1740652645175,4.9289,142.15,142.11,4.9299]
[1740652645375,4.9289,142.15,142.12,2.43602007]
[1740652645576,0.05080372,142.14,142.11,4.9299]
[1740652645871,0.05080372,142.14,142.08,17.0545]
[1740652646070,0.05080372,142.14,142.09,2.43687329]
[1740652646272,0.05080372,142.14,142.1,2.43687329]
[1740652646567,0.05080372,142.14,142.11,2.43468093]
[1740652646879,0.05080372,142.14,142.08,17.0545]
[1740652647270,0.05080372,142.14,142.09,2.43598702]
[1740652647470,0.05080372,142.14,142.11,4.9298]
[1740652647965,0.05080372,142.14,142.08,4.9309]
[1740652647966,4.9297,142.12,142.08,4.9309]
[1740652648172,0.05080372,142.14,142.05,11.44]
[1740652648375,5.5688,142.23,142.06,2.43492581]
[1740652648676,0.05151989,142.11,142.07,2.43492581]
[1740652648976,0.05211286,142.1,142.07,4.9314]
[1740652649274,5.5688,142.23,142.04,9.65307122]
[1740652649475,0.04786358,142.1,142.05,2.43113082]
[1740652649774,5.5688,142.23,142.06,2.43113082]
[1740652649975,0.0463824,142.09,142.03,3.848]
[1740652650175,5.5688,142.23,142.08,4.9311]
[1740652650472,0.0473597,142.07,142.05,2.43156322]
[1740652650770,4.9289,142.15,142.1,4.9304]
[1740652650977,2.073e-05,142.07,142.03,15.288]
[1740652651174,11.44,142.22,142.04,2.42868746]
[1740652651374,4.9282,142.17,142.11,4.9297]
[1740652651777,4.9286,142.16,142.11,4.9297]
[1740652652170,11.44,142.22,142.12,0.04650001]
[1740652652171,0.05169344,142.15,142.12,0.04650001]
[1740652652382,11.44,142.22,142.11,4.9297]
[1740652652570,11.44,142.22,142.12,0.04650001]
[1740652652769,4.9285,142.16,142.11,4.9297]
[1740652652975,4.9285,142.16,142.15,0.04650001]
[1740652653675,0.05005065,142.18,142.15,0.04650001]
[1740652653876,4.9282,142.17,142.15,0.04650001]
[1740652654174,0.05005065,142.18,142.15,0.04650001]
[1740652656580,0.05005065,142.18,142.17,4.928]
[1740652657680,11.42,142.34,142.17,11.42]
[1740652657876,4.0177,142.28,142.17,11.42]
[1740652658270,8.942,142.28,142.22,4.9261]
[1740652658677,8.942,142.28,142.18,2.41959221]
[1740652658877,0.0450009,142.26,142.24,0.05281674]
[1740652659181,0.0450009,142.26,142.18,2.41943974]
[1740652659373,0.0450009,142.26,142.24,0.04939041]
[1740652659582,8.942,142.28,142.17,11.42]
[1740652659777,0.04559515,142.26,142.24,0.05339453]
[1740652660083,0.04559515,142.26,142.19,2.42124336]
[1740652660285,0.04559515,142.26,142.24,0.04777815]
[1740652660478,4.9232,142.31,142.2,1.8729]
[1740652660682,0.05103974,142.26,142.24,0.05243314]
[1740652661082,6.7939,142.32,142.26,4.9246]
[1740652661577,0.05281185,142.3,142.28,0.05391424]
[1740652663779,0.05281185,142.3,142.21,1.8802]
[1740652663977,2.0023,142.34,142.22,2.4285629]
[1740652664184,2.0023,142.34,142.21,1.8802]
[1740652664375,2.0023,142.34,142.22,2.42872737]
[1740652664579,4.924,142.29,142.24,4.9253]
[1740652665086,0.05251842,142.28,142.25,0.04263642]
[1740652665479,2.0023,142.34,142.23,4.9258]
[1740652665678,0.04519351,142.28,142.25,0.04263642]
[1740652665976,2.0023,142.34,142.2,1.8729]
[1740652666181,0.04794071,142.28,142.25,0.04263642]
[1740652666383,4.9241,142.29,142.24,4.9253]
[1740652666685,0.0500734,142.28,142.25,0.04263642]
[1740652666880,0.0500734,142.28,142.25,4.96773642]
[1740652667276,4.9742734,142.28,142.25,4.96773642]
[1740652667878,4.9245,142.27,142.25,0.04263642]
[1740652672087,0.0500734,142.28,142.25,0.04263642]
[1740652672292,0.0500734,142.28,142.19,13.283]
[1740652672293,4.9257,142.24,142.2,4.9268]
[1740652672591,4.9257,142.24,142.21,2.44372468]
[1740652672892,4.9261,142.23,142.19,4.9272]
[1740652673080,4.9261,142.23,142.2,2.4441872]
[1740652673286,4.9261,142.23,142.19,4.9272]
[1740652673489,0.0475782,142.23,142.22,4.9262]
[1740652673688,0.0475782,142.23,142.22,7.36499543]
[1740652679392,0.0475782,142.23,142.22,2.43879543]
[1740652679593,0.0475782,142.23,142.2,4.9269]
[1740652679789,0.0475782,142.23,142.21,2.44425178]
[1740652679991,0.0475782,142.23,142.2,4.9269]
[1740652680191,0.0475782,142.23,142.21,2.44416093]
[1740652680402,0.0475782,142.23,142.2,4.9269]
[1740652681391,0.0475782,142.23,142.21,2.44469643]
[1740652681600,0.0475782,142.23,142.2,4.9269]
[1740652681900,0.0475782,142.23,142.21,2.44479452]
[1740652682101,0.0475782,142.23,142.18,4.9275]
[1740652682291,0.0475782,142.23,142.19,2.44518492]
[1740652682493,0.0475782,142.23,142.2,2.44518492]
[1740652682800,4.9735782,142.23,142.19,4.9271]
[1740652683096,0.0475782,142.23,142.2,2.44494472]
[1740652683292,4.9272,142.2,142.15,16.2685]
[1740652683494,4.9272,142.2,142.16,2.44669949]
[1740652683694,0.04443607,142.19,142.17,2.44669949]
[1740652683896,4.97173607,142.19,142.14,4.9288]
[1740652684098,0.04443607,142.19,142.15,2.44644636]
[1740652684297,0.04443607,142.19,142.16,2.44644636]
[1740652684501,0.04443607,142.19,142.13,4.9293]
[1740652684798,3.8167,142.22,142.14,2.44655764]
[1740652685099,0.05328236,142.17,142.15,2.44694532]
[1740652685301,4.9276,142.19,142.13,4.9291]
[1740652685499,0.04822257,142.17,142.14,2.44577365]
[1740652685698,0.04822257,142.17,142.15,2.44577365]
[1740652685998,0.04822257,142.17,142.09,1.9841]
[1740652686198,4.9295,142.13,142.1,2.44606947]
[1740652686393,205.2355,142.21,142.11,2.44606947]
[1740652686603,0.05075526,142.13,142.05,9.65307122]
[1740652686895,0.05225931,142.1,142.06,2.447611]
[1740652687102,192.0,142.2,142.07,2.447611]
[1740652687302,0.04667412,142.09,142.08,7.378611]
[1740652687500,192.0,142.2,142.08,2.447611]
[1740652687803,4.9302,142.11,142.09,2.447611]
[1740652688103,4.9302,142.11,142.05,9.65307122]
[1740652688307,4.98041655,142.11,142.06,2.44590659]
[1740652688600,4.9302,142.11,142.07,2.44590659]
[1740652688802,0.04614979,142.1,142.08,2.44590659]
[1740652688995,4.9304,142.1,142.05,4.9321]
[1740652689200,4.97969954,142.1,142.06,2.44597012]
[1740652689401,4.97969954,142.1,142.07,2.44597012]
[1740652689701,0.04929954,142.1,142.02,5.5538]
[1740652689895,0.04929954,142.1,142.03,2.44470324]
[1740652690091,0.04929954,142.1,142.04,2.44470324]
[1740652690294,0.04929954,142.1,142.05,2.44470324]
[1740652690492,0.04929954,142.1,142.06,2.44470324]
[1740652690693,0.04929954,142.1,142.02,5.5538]
[1740652690893,0.04929954,142.1,142.03,2.42498455]
[1740652691098,4.9311,142.09,142.04,2.42498455]
[1740652691296,0.04929954,142.1,142.05,2.42498455]
[1740652691496,192.0,142.19,142.06,2.42498455]
[1740652691700,0.04716079,142.09,142.05,4.9319]
[1740652691901,4.9307,142.1,142.06,2.42422418]
[1740652692105,0.04971568,142.08,142.05,4.9319]
[1740652692304,192.0,142.18,142.06,2.42358124]
[1740652692602,192.0,142.17,142.05,4.9319]
[1740652692803,192.0,142.17,142.06,2.42390226]
[1740652692804,4.931,142.09,142.06,2.42390226]
[1740652693000,4.931,142.09,142.02,3.6808]
[1740652693202,4.98045906,142.09,142.03,2.4239412]
[1740652693498,4.98045906,142.09,142.05,4.9319]
[1740652693697,4.98045906,142.09,142.06,2.4239412]
[1740652693900,4.98045906,142.09,142.05,4.9319]
[1740652694098,191.98045906,142.17,142.06,2.46925462]
[1740652694300,191.98045906,142.17,142.02,3.6808]
[1740652694607,191.98045906,142.17,142.03,2.42324608]
[1740652694904,191.98045906,142.17,142.04,2.42324608]
[1740652695206,4.9314,142.08,142.03,4.9326]
[1740652695402,4.9314,142.08,142.02,3.6808]
[1740652695601,0.04737864,142.07,142.04,0.04902076]
[1740652695801,4.9305,142.1,142.02,3.6808]
[1740652696002,0.04588145,142.07,142.06,4.9317]
[1740652696204,191.98045906,142.17,142.02,3.6808]
[1740652696405,0.05037906,142.08,142.05,0.04791121]
[1740652696706,4.9298,142.12,142.07,4.9311]
[1740652697011,191.98045906,142.17,142.02,3.6808]
[1740652697304,4.9307,142.09,142.08,0.04799535]
[1740652697505,4.9307,142.09,142.05,4.9319]
[1740652697705,4.9307,142.09,142.07,0.04945906]
[1740652697905,4.9307,142.09,142.03,2.41999014]
[1740652698108,4.98375017,142.09,142.07,0.04945906]
[1740652698304,4.98375017,142.09,142.03,2.41862667]
[1740652698504,4.98375017,142.09,142.07,0.04624885]
[1740652698805,0.05305017,142.09,142.03,2.41819938]
[1740652699006,0.05305017,142.09,142.07,0.04945906]
[1740652699308,0.05305017,142.09,142.02,3.6808]
[1740652699504,0.05305017,142.09,142.07,0.04945906]
[1740652699713,0.05305017,142.09,142.04,0.04559964]
[1740652699908,0.05305017,142.09,142.08,4.9311]
[1740652700407,0.05305017,142.09,142.07,0.04909862]
[1740652700710,0.05305017,142.09,142.02,3.6808]
[1740652700905,0.05305017,142.09,142.07,0.04535508]
[1740652701203,0.05305017,142.09,142.07,0.04945906]
[1740652701604,4.9311,142.08,142.07,0.04945906]
[1740652711328,4.98385017,142.09,142.07,0.04945906]
[1740652713929,4.9311,142.08,142.07,0.04945906]
[1740652714128,0.05305017,142.09,142.07,0.04945906]
[1740652714523,4.98385017,142.09,142.07,0.04945906]
[1740652715631,4.9311,142.08,142.07,0.04945906]
[1740652717833,0.05305017,142.09,141.98,9.65307122]
[1740652718039,1.9593,142.07,141.99,2.38766669]
[1740652718331,1.9593,142.07,141.98,9.65307122]
[1740652718332,4.9335,142.02,141.98,9.65307122]
[1740652718522,4.9335,142.02,141.99,2.38835534]
[1740652718727,4.9335,142.02,141.98,9.65307122]
[1740652718929,4.9337,142.01,141.98,9.65307122]
[1740652719130,4.98413942,142.01,141.98,9.65307122]
[1740652719321,4.98413942,142.01,141.97,37.69661368]
[1740652719322,4.98413942,142.01,141.97,6.8901]
[1740652719933,4.98413942,142.01,141.97,1.9553]
[1740652720629,0.05043942,142.01,141.97,1.9553]
[1740652721027,0.05043942,142.01,141.96,6.8916]
[1740652721229,4.98423942,142.01,141.97,2.3911474]
[1740652721430,4.98423942,142.01,141.98,2.3911474]
[1740652721629,4.98423942,142.01,141.96,1.9565]
[1740652721829,4.98423942,142.01,141.97,2.39441028]
[1740652722033,4.98423942,142.01,141.98,2.39441028]
[1740652722230,4.98423942,142.01,141.96,6.8917]
[1740652722430,0.05043942,142.01,141.97,2.39628985]
[1740652722629,0.05043942,142.01,141.98,2.39628985]
[1740652722829,0.05043942,142.01,141.96,1.9565]
[1740652723030,0.05043942,142.01,141.97,2.39632322]
[1740652723232,0.05043942,142.01,141.98,2.39632322]
[1740652723525,0.05043942,142.01,141.97,4.9347]
[1740652723526,0.05043942,142.01,141.99,2.39782983]
[1740652723730,0.05043942,142.01,141.96,1.9565]
[1740652723934,0.05043942,142.01,141.97,2.39748223]
[1740652724134,0.05043942,142.01,141.98,2.39748223]
[1740652724337,0.05043942,142.01,141.99,2.39748223]
[1740652724535,0.05043942,142.01,142.0,2.39748223]
[1740652725235,1.9593,142.07,142.0,2.39748223]
[1740652725435,3.8676,142.11,142.01,2.39748223]
[1740652725738,3.8676,142.11,142.02,2.39748223]
[1740652726039,3.8676,142.11,142.03,2.39748223]
[1740652726239,4.9309,142.09,142.03,4.9327]
[1740652726532,0.04662138,142.08,142.06,0.04446617]
[1740652727535,4.97772138,142.08,142.06,0.04446617]
[1740652727836,0.04662138,142.08,142.06,0.04446617]
[1740652728237,4.9314,142.07,142.06,0.04446617]
[1740652728435,0.04662138,142.08,141.97,9.65307122]
[1740652728737,4.9327,142.04,142.0,4.9339]
[1740652728940,4.9327,142.04,142.01,2.4052248]
[1740652729141,4.9327,142.04,142.02,2.4052248]
[1740652729338,4.9327,142.04,142.03,2.4052248]
[1740652732838,4.9327,142.04,142.03,2.41009049]
[1740652732839,4.9325,142.04,142.03,2.41009049]
[1740652733035,0.05226731,142.05,141.96,1.9565]
[1740652733235,191.98045906,142.1,141.97,7.34495947]
[1740652733541,191.98045906,142.1,141.98,2.41015947]
[1740652733740,0.0537075,142.05,141.99,2.41015947]
[1740652733941,0.0537075,142.05,142.0,2.41015947]
[1740652734143,13.22476987,142.09,142.01,2.41015947]
[1740652734343,4.9344,141.99,141.95,4.9355]
[1740652734545,4.9344,141.99,141.96,2.4104542]
[1740652734743,0.05172701,141.98,141.97,2.4104542]
[1740652739646,0.05172701,141.98,141.97,7.3453542]
[1740652741042,0.05172701,141.98,141.97,2.4104542]
[1740652745351,4.98632701,141.98,141.97,2.4104542]
[1740652747857,0.05172701,141.98,141.97,2.4104542]
[1740652748058,0.05172701,141.98,141.97,7.3453542]
[1740652758566,0.05172701,141.98,141.97,2.4104542]
[1740652759266,0.05172701,141.98,141.97,7.3453542]
[1740652760358,0.05172701,141.98,141.97,2.4104542]
[1740652761166,4.98632701,141.98,141.97,2.4104542]
[1740652764371,0.05172701,141.98,141.97,2.4104542]
[1740652766269,4.98632701,141.98,141.97,2.4104542]
[1740652767472,4.98632701,141.98,141.94,4.9358]
[1740652767682,4.98632701,141.98,141.95,2.41623177]
[1740652767885,4.98632701,141.98,141.96,2.41623177]
[1740652768085,4.98632701,141.98,141.97,2.41623177]
[1740652773788,0.05172701,141.98,141.92,5.55843538]
[1740652773992,4.9355,141.96,141.92,5.55843538]
[1740652774282,4.9355,141.96,141.92,4.9365]
[1740652775187,4.9355,141.96,141.93,4.9362]
[1740652775580,0.04782284,141.96,141.9,1.9169]
[1740652775787,0.04782284,141.96,141.95,4.9356]
[1740652775985,0.04782284,141.96,141.92,4.59758796]
[1740652776181,0.04782284,141.96,141.9,1.9169]
[1740652776386,0.04782284,141.96,141.94,4.9357]
[1740652776587,0.04782284,141.96,141.9,1.9169]
[1740652776788,4.98312284,141.96,141.92,4.9366]
[1740652777891,4.9356,141.95,141.92,4.9366]
[1740652780190,4.98312284,141.96,141.93,4.59799811]
[1740652780490,4.98312284,141.96,141.91,7.19779093]
[1740652780686,0.04782284,141.96,141.93,4.936]
[1740652782587,4.98312284,141.96,141.93,4.936]
[1740652785797,0.04782284,141.96,141.94,4.9359]
[1740652786789,0.04782284,141.96,141.89,1.8408]
[1740652786993,0.04782284,141.96,141.9,11.79236402]
[1740652787193,0.04782284,141.96,141.91,11.79236402]
[1740652787394,0.04782284,141.96,141.95,4.9356]
[1740652789995,4.9336,142.01,141.92,1.923]
[1740652790198,4.933,142.03,141.93,4.59554826]
[1740652790396,3.9551,142.05,141.94,4.59554826]
[1740652790599,3.9551,142.05,141.95,14.9406]
[1740652791100,4.9322,142.05,142.01,4.9334]
[1740652791395,0.04978175,142.04,142.01,4.9334]
[1740652792596,0.04978175,142.04,141.99,0.04469617]
[1740652794097,4.9339,142.0,141.99,0.04469617]
[1740652795796,3.9339,142.0,141.99,0.04469617]
[1740652800508,4.9351,141.97,141.89,20.77307122]
[1740652800710,4.9351,141.97,141.92,4.60218402]
[1740652800903,4.9351,141.97,141.89,20.77307122]
[1740652801104,4.9348,141.98,141.94,4.9359]
[1740652801607,0.04658184,141.97,141.94,4.9359]
[1740652802003,4.98178184,141.97,141.94,4.9359]
[1740652802404,4.98178184,141.97,141.89,45.81622092]
[1740652802605,4.98178184,141.97,141.93,4.9361]
[1740652803709,4.9355,141.96,141.93,4.9361]
[1740652803909,4.9355,141.96,141.92,4.9364]
[1740652804109,4.9355,141.96,141.93,4.59960381]
[1740652804309,4.9355,141.96,141.92,4.9364]
[1740652804508,4.9355,141.96,141.93,4.5997366]
[1740652804708,4.9355,141.96,141.92,4.9364]
[1740652804911,4.9355,141.96,141.93,4.59982689]
[1740652805109,4.9355,141.96,141.92,4.9364]
[1740652805310,4.9355,141.96,141.93,4.6002134]
[1740652805511,4.9355,141.96,141.92,4.9364]
[1740652805710,4.9355,141.96,141.93,4.60018804]
[1740652805903,4.9357,141.95,141.92,4.9364]
[1740652806107,4.9357,141.95,141.93,4.60020645]
[1740652806308,4.9357,141.95,141.92,4.9364]
[1740652806512,4.9354,141.96,141.93,4.59997055]
[1740652806711,4.9354,141.96,141.92,4.9364]
[1740652806913,4.9354,141.96,141.93,4.59999613]
[1740652807117,4.9354,141.96,141.92,4.9364]
[1740652807411,4.9354,141.96,141.93,4.59999613]
[1740652807612,4.9354,141.96,141.92,4.9364]
[1740652807813,4.9354,141.96,141.93,4.59987912]
[1740652808116,4.9354,141.96,141.92,4.9364]
[1740652808413,4.9354,141.96,141.93,4.59985153]
[1740652808713,4.9354,141.96,141.93,4.9363]
[1740652810509,0.04658184,141.97,141.93,4.9363]
[1740652810716,0.04658184,141.97,141.94,4.59968668]
[1740652810915,0.04658184,141.97,141.91,2.011]
[1740652811212,0.04658184,141.97,141.92,4.59937134]
[1740652811409,0.04658184,141.97,141.93,4.59937134]
[1740652811609,0.04658184,141.97,141.94,4.9358]
[1740652811918,0.04658184,141.97,141.92,7.19978652]
[1740652812109,0.04658184,141.97,141.93,13.82259301]
[1740652812416,0.04658184,141.97,141.94,4.59790649]
[1740652812616,0.04658184,141.97,141.93,2.0249]
[1740652812819,0.04658184,141.97,141.94,4.59736956]
[1740652813115,191.98045906,142.04,141.95,4.59703199]
[1740652813320,4.9329,142.03,141.98,4.9343]
[1740652813510,1.9093,142.06,141.95,11.12]
[1740652813707,4.9326,142.04,141.99,4.9339]
[1740652813910,13.29878221,142.05,141.95,11.12]
[1740652814111,0.04571585,142.03,142.0,0.05258517]
[1740652815016,4.9332,142.02,142.0,0.05258517]
[1740652817318,0.04571585,142.03,142.0,0.05258517]
[1740652819620,0.04571585,142.03,142.01,4.9335]
[1740652819818,0.04571585,142.03,142.0,0.05258517]
[1740652827322,4.9335,142.01,142.0,0.05258517]
[1740652830629,0.04571585,142.03,142.0,0.05258517]
[1740652832535,4.9335,142.01,142.0,0.05258517]
[1740652835737,0.04571585,142.03,142.0,0.05258517]
[1740652836036,4.9333,142.02,142.0,0.05258517]
[1740652838537,4.9335,142.01,142.0,0.05258517]
[1740652845338,4.9346,141.98,141.94,4.9359]
[1740652845746,5.8684,142.02,141.93,1.917]
[1740652845946,5.8684,142.02,141.95,4.9354]
[1740652846148,4.9345,141.99,141.95,4.9354]
[1740652846344,5.8684,142.02,141.95,4.9354]
[1740652846545,0.05003783,141.98,141.95,4.9354]
[1740652847550,4.98463783,141.98,141.95,4.9354]
[1740652848648,4.98463783,141.98,141.93,1.917]
[1740652848850,4.98463783,141.98,141.94,4.9358]
[1740652851852,0.05003783,141.98,141.93,1.917]
[1740652852048,0.05003783,141.98,141.94,4.59074868]
[1740652852254,0.05003783,141.98,141.93,1.917]
[1740652852454,0.05003783,141.98,141.94,4.59048124]
[1740652852650,0.05003783,141.98,141.93,1.917]
[1740652852949,0.05003783,141.98,141.94,4.59041348]
[1740652853148,0.05003783,141.98,141.95,4.59041348]
[1740652853350,0.05003783,141.98,141.93,1.917]
[1740652853549,0.05003783,141.98,141.97,4.9349]
[1740652856757,0.05003783,141.98,141.93,1.917]
[1740652856958,0.05003783,141.98,141.96,4.9352]
[1740652859651,0.05003783,141.98,141.97,4.9349]
[1740652864363,3.8032,142.07,141.97,25.72665623]
[1740652864568,3.8032,142.07,141.96,18.29826323]
[1740652864765,3.8032,142.07,141.97,6.50722346]
[1740652864969,4.9319,142.06,142.02,4.9329]
[1740652865565,0.04703447,142.05,142.03,0.04603956]
[1740652867373,0.04703447,142.05,141.96,11.12]
[1740652867574,0.04703447,142.05,141.92,106.18378351]
[1740652867575,3.8032,142.07,141.93,11.57007122]
[1740652867768,14.9232,142.07,141.93,9.65307122]
[1740652868170,4.9349,141.98,141.95,38.6122849]
[1740652868474,0.04949857,141.98,141.95,38.6122849]
[1740652868668,4.9353,141.96,141.95,23.3907849]
[1740652868872,4.9353,141.96,141.95,20.3461849]
[1740652870981,4.9353,141.96,141.95,9.65307122]
[1740652871274,4.9359,141.95,141.88,106.94795812]
[1740652871780,0.04610238,141.93,141.88,106.94795812]
[1740652871973,4.936,141.94,141.88,106.94795812]
[1740652872274,0.05234252,141.92,141.88,106.94795812]
[1740652872671,0.05234252,141.92,141.88,102.00995812]
[1740652873472,0.05234252,141.92,141.88,106.94795812]
[1740652875077,0.05234252,141.92,141.89,4.9377]
[1740652875374,3.7056,141.99,141.88,102.00995812]
[1740652875566,3.7056,141.99,141.91,4.9367]
[1740652875769,4.9355,141.96,141.89,1.9438]
[1740652876170,4.9355,141.96,141.91,4.9367]
[1740652876377,4.9355,141.96,141.89,1.9438]
[1740652876574,0.04595545,141.95,141.94,4.9358]
[1740652876778,5.7667,142.04,141.9,4.57255255]
[1740652876978,5.7667,142.04,141.91,11.12]
[1740652877671,13.24308776,142.08,141.92,4.5709211]
[1740652877866,0.04704361,141.99,141.96,0.05247995]
[1740652878075,17.09858776,142.08,141.94,1.8406]
[1740652878371,0.04943069,141.99,141.96,0.05092667]
[1740652878568,4.9329,142.03,141.98,4.9343]